[Event "Elite Hotels Open 2024"]
[Site "Elite Stadshotellet, Kungsgatan 6, Vaxjo, Sweden"]
[Date "2024.02.10"]
[Round "5.12"]
[White "Schriever-Abeln, Marius"]
[Black "Grahn, Vidar"]
[Result "0-1"]
[TimeControl "15 minutes + 5 seconds per move from move one (Round 1 - 4) / 90 minutes + 30 seconds per move from move one (Round 5 - 8)"]
[WhiteFideId "1752650"]
[BlackFideId "1744780"]
[WhiteElo "1848"]
[BlackElo "2234"]

1. d4 {[%clk 01:30:58]} {[%emt 00:00:02]} d5 {[%clk 01:30:53]} {[%emt
00:00:07]} 2. c4 {[%clk 01:31:20]} {[%emt 00:00:08]} e6 {[%clk 01:31:18]}
{[%emt 00:00:05]} 3. Nc3 {[%clk 01:31:43]} {[%emt 00:00:06]} Nf6 {[%clk
01:31:45]} {[%emt 00:00:04]} 4. cxd5 {[%clk 01:32:02]} {[%emt 00:00:11]} exd5
{[%clk 01:32:10]} {[%emt 00:00:05]} 5. Bg5 {[%clk 01:32:23]} {[%emt 00:00:08]}
c6 {[%clk 01:32:22]} {[%emt 00:00:19]} 6. e3 {[%clk 01:32:27]} {[%emt
00:00:25]} h6 {[%clk 01:32:26]} {[%emt 00:00:27]} 7. Bh4 {[%clk 01:31:42]}
{[%emt 00:01:15]} Be6 {[%clk 01:32:22]} {[%emt 00:00:34]} 8. Bd3 {[%clk
01:30:41]} {[%emt 00:01:31]} Nbd7 {[%emt 00:00:21]} 9. Nge2 {[%clk 01:29:19]}
{[%emt 00:01:50]} g5 {[%clk 01:32:27]} {[%emt 00:00:35]} 10. Bg3 {[%clk
01:29:13]} {[%emt 00:00:37]} Nh5 {[%clk 01:30:06]} {[%emt 00:02:51]} 11. Qc2
{[%clk 01:24:39]} {[%emt 00:05:04]} Nxg3 {[%clk 01:30:15]} {[%emt 00:00:21]} 12.
Nxg3 {[%clk 01:22:52]} {[%emt 00:02:16]} h5 {[%clk 01:30:30]} {[%emt 00:00:16]}
13. O-O-O {[%clk 01:16:21]} {[%emt 00:07:01]} h4 {[%clk 01:29:40]} {[%emt
00:01:21]} 14. Nf5 {[%clk 01:10:16]} {[%emt 00:06:34]} Qa5 {[%clk 01:29:46]}
{[%emt 00:00:24]} 15. Kb1 {[%clk 01:06:52]} {[%emt 00:03:54]} O-O-O {[%clk
01:29:27]} {[%emt 00:00:50]} 16. g4 {[%clk 00:59:40]} {[%emt 00:07:42]} Kb8
{[%clk 01:27:25]} {[%emt 00:02:31]} 17. f3 {[%clk 00:57:13]} {[%emt 00:02:57]}
c5 {[%clk 01:19:25]} {[%emt 00:08:30]} 18. dxc5 {[%clk 00:47:39]} {[%emt
00:10:04]} Bxc5 {[%clk 01:17:32]} {[%emt 00:02:23]} 19. Nd4 {[%clk 00:40:30]}
{[%emt 00:07:39]} Bxd4 {[%clk 01:13:57]} {[%emt 00:04:05]} 20. exd4 {[%clk
00:40:46]} {[%emt 00:00:13]} Nb6 {[%clk 01:13:35]} {[%emt 00:00:53]} 21. Qe2
{[%clk 00:36:54]} {[%emt 00:04:23]} Nd7 {[%clk 01:01:10]} {[%emt 00:12:55]} 22.
Rc1 {[%clk 00:29:49]} {[%emt 00:07:36]} Rhe8 {[%clk 00:57:18]} {[%emt
00:04:21]} 23. Qd2 {[%clk 00:27:14]} {[%emt 00:03:05]} f6 {[%clk 00:53:27]}
{[%emt 00:04:21]} 24. f4 {[%clk 00:24:25]} {[%emt 00:03:19]} Qb4 {[%clk
00:51:38]} {[%emt 00:02:20]} 25. Bg6 {[%clk 00:15:35]} {[%emt 00:09:19]} Rf8
{[%clk 00:50:04]} {[%emt 00:02:04]} 26. Qe2 {[%clk 00:13:37]} {[%emt 00:02:27]}
Bg8 {[%clk 00:47:57]} {[%emt 00:02:38]} 27. Qe3 {[%clk 00:11:37]} {[%emt
00:02:30]} Nb6 {[%clk 00:43:56]} {[%emt 00:04:30]} 28. Rhe1 {[%clk 00:06:48]}
{[%emt 00:05:19]} Nc4 {[%clk 00:43:33]} {[%emt 00:00:53]} 29. Qf2 {[%clk
00:06:50]} {[%emt 00:00:28]} Ka8 {[%clk 00:37:56]} {[%emt 00:06:07]} 30. Re2
{[%clk 00:06:36]} {[%emt 00:00:44]} Rc8 {[%clk 00:37:19]} {[%emt 00:01:07]} 31.
Ka1 {[%clk 00:05:51]} {[%emt 00:01:15]} Qa5 {[%clk 00:32:33]} {[%emt 00:05:14]}
32. Rec2 {[%clk 00:03:54]} {[%emt 00:02:28]} Be6 {[%clk 00:30:27]} {[%emt
00:02:36]} 33. f5 {[%clk 00:03:16]} {[%emt 00:01:09]} Bd7 {[%clk 00:29:57]}
{[%emt 00:00:59]} 34. Qf3 {[%clk 00:02:51]} {[%emt 00:00:56]} Bc6 {[%clk
00:29:55]} {[%emt 00:00:31]} 35. Qd3 {[%clk 00:02:37]} {[%emt 00:00:44]} Nd6
{[%clk 00:28:18]} {[%emt 00:02:08]} 36. h3 {[%clk 00:01:51]} {[%emt 00:01:16]}
a6 {[%clk 00:27:28]} {[%emt 00:01:20]} 37. Kb1 {[%clk 00:01:48]} {[%emt
00:00:34]} Rc7 {[%clk 00:27:26]} {[%emt 00:00:32]} 38. Nd1 {[%clk 00:00:52]}
{[%emt 00:01:26]} Rfc8 {[%clk 00:27:28]} {[%emt 00:00:28]} 39. Rc5 {[%clk
00:00:32]} {[%emt 00:00:51]} Qb6 {[%clk 00:25:52]} {[%emt 00:02:05]} 40. Ne3
{[%clk 00:00:45]} {[%emt 00:00:17]} Ne4 {[%clk 00:25:25]} {[%emt 00:00:57]} 41.
R5c2 {[%clk 00:00:44]} {[%emt 00:00:32]} Ka7 {[%clk 00:24:58]} {[%emt
00:00:56]} 42. Qa3 {[%clk 00:00:33]} {[%emt 00:00:41]} Qxd4 {[%clk 00:23:59]}
{[%emt 00:01:29]} 43. Rd1 {[%clk 00:00:43]} {[%emt 00:00:20]} Qb6 {[%clk
00:23:33]} {[%emt 00:00:55]} 44. Qd3 {[%clk 00:00:36]} {[%emt 00:00:37]} Bb5
{[%clk 00:23:05]} {[%emt 00:00:57]} 45. Qb3 {[%clk 00:00:38]} {[%emt 00:00:28]}
Rxc2 {[%clk 00:22:54]} {[%emt 00:00:42]} 46. Nxc2 {[%clk 00:01:06]} {[%emt
00:00:02]} Nd2+ {[%clk 00:21:27]} {[%emt 00:01:56]} 47. Rxd2 {[%clk 00:01:11]}
{[%emt 00:00:26]} Qg1+ {[%clk 00:21:53]} {[%emt 00:00:03]} 48. Ne1 {[%clk
00:01:30]} {[%emt 00:00:12]} Qxe1+ {[%clk 00:22:15]} {[%emt 00:00:08]} 49. Qd1
{[%clk 00:01:02]} {[%emt 00:00:58]} Qe4+ {[%clk 00:22:17]} {[%emt 00:00:28]} 50.
Ka1 {[%clk 00:01:24]} {[%emt 00:00:08]} Ba4 {[%clk 00:21:06]} {[%emt 00:01:41]}
51. b3 {[%clk 00:01:02]} {[%emt 00:00:52]} Qe5+ {[%clk 00:20:37]} {[%emt
00:00:58]} 52. Kb1 {[%clk 00:01:17]} {[%emt 00:00:16]} Bc6 {[%clk 00:20:22]}
{[%emt 00:00:45]} 53. Rd4 {[%clk 00:00:42]} {[%emt 00:01:06]} Ka8 {[%clk
00:19:56]} {[%emt 00:00:55]} 54. Bf7 {[%clk 00:01:00]} {[%emt 00:00:13]} Qe3
{[%clk 00:19:16]} {[%emt 00:01:08]} 55. Bxd5 {[%clk 00:00:40]} {[%emt
00:00:51]} Bxd5 {[%clk 00:18:27]} {[%emt 00:01:20]} 56. Rxd5 {[%clk 00:01:07]}
{[%emt 00:00:03]} Qxh3 {[%clk 00:18:18]} {[%emt 00:00:39]} 57. Rd8 {[%clk
00:00:39]} {[%emt 00:00:57]} Qc3 {[%clk 00:18:36]} {[%emt 00:00:10]} 58. Rxc8+
{[%clk 00:00:38]} {[%emt 00:00:33]} Qxc8 {[%clk 00:18:55]} {[%emt 00:00:11]} 59.
Qd3 {[%clk 00:00:43]} {[%emt 00:00:25]} Qc6 {[%clk 00:17:49]} {[%emt 00:01:36]}
60. Qd8+ {[%clk 00:00:32]} {[%emt 00:00:41]} Ka7 {[%clk 00:18:15]} {[%emt
00:00:04]} 61. Qd4+ {[%clk 00:00:31]} {[%emt 00:00:31]} Qb6 {[%clk 00:18:37]}
{[%emt 00:00:07]} 62. Qc3 {[%clk 00:00:32]} {[%emt 00:00:29]} Qf2 {[%clk
00:18:30]} {[%emt 00:00:36]} 63. Qd3 {[%clk 00:00:33]} {[%emt 00:00:31]} Qf4
{[%clk 00:17:31]} {[%emt 00:01:28]} 64. Qc3 {[%clk 00:00:42]} {[%emt 00:00:22]}
Qf1+ {[%clk 00:17:19]} {[%emt 00:00:41]} 65. Kb2 {[%clk 00:00:56]} {[%emt
00:00:16]} Qg2+ {[%clk 00:17:24]} {[%emt 00:00:25]} 66. Kb1 {[%clk 00:01:01]}
{[%emt 00:00:26]} h3 {[%clk 00:17:23]} {[%emt 00:00:31]} 67. Qd4+ {[%clk
00:00:35]} {[%emt 00:00:57]} b6 {[%clk 00:17:46]} {[%emt 00:00:07]} 68. Qd7+
{[%clk 00:00:53]} {[%emt 00:00:11]} Qb7 {[%clk 00:18:07]} {[%emt 00:00:09]} 69.
Qd6 {[%clk 00:00:59]} {[%emt 00:00:25]} a5 {[%clk 00:15:39]} {[%emt 00:02:57]}
70. a4 {[%clk 00:01:22]} {[%emt 00:00:07]} Qe4+ {[%clk 00:14:20]} {[%emt
00:01:49]} 71. Kb2 {[%clk 00:00:56]} {[%emt 00:00:56]} Qg2+ {[%clk 00:13:11]}
{[%emt 00:01:38]} 72. Kb1 {[%clk 00:00:54]} {[%emt 00:00:33]} Qe4+ {[%clk
00:12:35]} {[%emt 00:01:05]} 73. Kb2 {[%clk 00:01:15]} {[%emt 00:00:09]} Ka6
{[%clk 00:12:20]} {[%emt 00:00:45]} 74. Qc7 {[%clk 00:00:35]} {[%emt 00:01:11]}
Qd5 {[%clk 00:12:04]} {[%emt 00:00:45]} 75. Kb1 {[%clk 00:00:32]} {[%emt
00:00:35]} Qxb3+ {[%clk 00:12:25]} {[%emt 00:00:08]} 76. Kc1 {[%clk 00:00:55]}
{[%emt 00:00:07]} Qa3+ {[%clk 00:12:40]} {[%emt 00:00:15]} 77. Kd2 {[%clk
00:01:01]} {[%emt 00:00:23]} Qf3 {[%clk 00:11:28]} {[%emt 00:01:41]} 78. Qc4+
{[%clk 00:00:52]} {[%emt 00:00:40]} Ka7 {[%clk 00:11:51]} {[%emt 00:00:07]} 79.
Qc7+ {[%clk 00:00:44]} {[%emt 00:00:39]} Qb7 {[%clk 00:12:12]} {[%emt
00:00:08]} 80. Qd6 {[%clk 00:00:52]} {[%emt 00:00:22]} Qg2+ {[%clk 00:12:26]}
{[%emt 00:00:15]} 81. Kc3 {[%clk 00:00:39]} {[%emt 00:00:44]} Qf3+ {[%clk
00:12:37]} {[%emt 00:00:18]} 82. Kc2 {[%clk 00:00:38]} {[%emt 00:00:31]} Qe4+
{[%clk 00:12:47]} {[%emt 00:00:20]} 83. Kc1 {[%clk 00:00:32]} {[%emt 00:00:38]}
Qf4+ {[%clk 00:13:12]} {[%emt 00:00:05]} 0-1

[Event "Elite Hotels Open 2024"]
[Site "Elite Stadshotellet, Kungsgatan 6, Vaxjo, Sweden"]
[Date "2024.02.10"]
[Round "5.13"]
[White "Silseth, Simon"]
[Black "Mattsson, Michael"]
[Result "1-0"]
[TimeControl "15 minutes + 5 seconds per move from move one (Round 1 - 4) / 90 minutes + 30 seconds per move from move one (Round 5 - 8)"]
[WhiteTitle "FM"]
[WhiteFideId "1702440"]
[BlackFideId "1708961"]
[WhiteElo "2228"]
[BlackElo "2033"]

1. c4 {[%clk 01:30:55]} {[%emt 00:00:03]} e5 {[%clk 01:28:25]} {[%emt
00:02:35]} 2. Nc3 {[%clk 01:31:13]} {[%emt 00:00:12]} Nf6 {[%clk 01:28:41]}
{[%emt 00:00:15]} 3. Nf3 {[%clk 01:30:12]} {[%emt 00:01:30]} Nc6 {[%clk
01:28:48]} {[%emt 00:00:23]} 4. g3 {[%clk 01:30:26]} {[%emt 00:00:15]} d5
{[%clk 01:28:46]} {[%emt 00:00:33]} 5. cxd5 {[%clk 01:30:20]} {[%emt 00:00:36]}
Nxd5 {[%clk 01:29:10]} {[%emt 00:00:06]} 6. Bg2 {[%clk 01:30:35]} {[%emt
00:00:14]} Nb6 {[%clk 01:29:21]} {[%emt 00:00:20]} 7. O-O {[%clk 01:29:08]}
{[%emt 00:01:56]} Be7 {[%clk 01:28:28]} {[%emt 00:01:24]} 8. d3 {[%clk
01:29:04]} {[%emt 00:00:33]} O-O {[%clk 01:28:13]} {[%emt 00:00:45]} 9. a3
{[%clk 01:26:56]} {[%emt 00:02:39]} a5 {[%clk 01:28:27]} {[%emt 00:00:17]} 10.
Be3 {[%clk 01:25:41]} {[%emt 00:01:45]} Be6 {[%clk 01:18:34]} {[%emt 00:10:23]}
11. Rc1 {[%clk 01:11:59]} {[%emt 00:14:12]} Nd5 {[%clk 01:16:34]} {[%emt
00:02:30]} 12. Nxd5 {[%clk 01:06:14]} {[%emt 00:06:16]} Bxd5 {[%clk 01:16:54]}
{[%emt 00:00:09]} 13. Qa4 {[%clk 01:04:11]} {[%emt 00:02:32]} Bf6 {[%clk
01:03:30]} {[%emt 00:13:54]} 14. Nd2 {[%clk 00:57:27]} {[%emt 00:07:14]} Bxg2
{[%clk 01:01:22]} {[%emt 00:02:37]} 15. Kxg2 {[%clk 00:53:52]} {[%emt
00:04:06]} Nd4 {[%clk 00:58:04]} {[%emt 00:03:49]} 16. Bxd4 {[%clk 00:49:49]}
{[%emt 00:04:32]} exd4 {[%clk 00:57:20]} {[%emt 00:01:14]} 17. Qb5 {[%clk
00:46:12]} {[%emt 00:04:08]} Qe8 {[%clk 00:50:52]} {[%emt 00:06:59]} 18. Qxe8
{[%clk 00:43:00]} {[%emt 00:03:41]} Rfxe8 {[%clk 00:51:13]} {[%emt 00:00:10]}
19. Rxc7 {[%clk 00:36:06]} {[%emt 00:07:24]} Rxe2 {[%clk 00:49:23]} {[%emt
00:02:20]} 20. Rfc1 {[%clk 00:33:15]} {[%emt 00:03:20]} Kf8 {[%clk 00:44:23]}
{[%emt 00:05:31]} 21. R1c2 {[%clk 00:32:06]} {[%emt 00:01:39]} b5 {[%clk
00:41:34]} {[%emt 00:03:19]} 22. Kf3 {[%clk 00:30:44]} {[%emt 00:01:52]} Re7
{[%clk 00:38:02]} {[%emt 00:04:03]} 23. Ne4 {[%clk 00:26:21]} {[%emt 00:04:52]}
Rxc7 {[%clk 00:34:13]} {[%emt 00:04:20]} 24. Rxc7 {[%clk 00:26:44]} {[%emt
00:00:06]} Be7 {[%clk 00:34:17]} {[%emt 00:00:26]} 25. Rb7 {[%clk 00:24:19]}
{[%emt 00:02:55]} b4 {[%clk 00:32:07]} {[%emt 00:02:40]} 26. a4 {[%clk
00:23:32]} {[%emt 00:01:16]} Ke8 {[%clk 00:27:13]} {[%emt 00:05:24]} 27. Nd2
{[%clk 00:23:23]} {[%emt 00:00:39]} Rc8 {[%clk 00:24:55]} {[%emt 00:02:49]} 28.
Nc4 {[%clk 00:23:40]} {[%emt 00:00:12]} Rc5 {[%clk 00:22:30]} {[%emt 00:02:55]}
29. Ra7 {[%clk 00:20:39]} {[%emt 00:03:30]} Rf5+ {[%clk 00:19:08]} {[%emt
00:03:53]} 30. Ke2 {[%clk 00:20:12]} {[%emt 00:00:57]} h5 {[%clk 00:18:44]}
{[%emt 00:00:53]} 31. Rxa5 {[%clk 00:19:37]} {[%emt 00:01:05]} Rxa5 {[%clk
00:19:03]} {[%emt 00:00:12]} 32. Nxa5 {[%clk 00:20:01]} {[%emt 00:00:06]} Kd7
{[%clk 00:19:05]} {[%emt 00:00:27]} 33. Nb3 {[%clk 00:17:24]} {[%emt 00:03:08]}
Bf6 {[%clk 00:19:15]} {[%emt 00:00:20]} 34. Kf3 {[%clk 00:17:20]} {[%emt
00:00:33]} 1-0

[Event "Elite Hotels Open 2024"]
[Site "Elite Stadshotellet, Kungsgatan 6, Vaxjo, Sweden"]
[Date "2024.02.10"]
[Round "5.14"]
[White "Frisk, Ellinor"]
[Black "Dingertz, Filip"]
[Result "1-0"]
[TimeControl "15 minutes + 5 seconds per move from move one (Round 1 - 4) / 90 minutes + 30 seconds per move from move one (Round 5 - 8)"]
[WhiteTitle "WIM"]
[WhiteFideId "1708481"]
[BlackFideId "1757288"]
[WhiteElo "2141"]
[BlackElo "1801"]

1. Nf3 {[%clk 01:29:55]} {[%emt 00:01:04]} d5 {[%clk 01:30:51]} {[%emt
00:00:10]} 2. c4 {[%clk 01:30:04]} {[%emt 00:00:21]} e6 {[%clk 01:30:38]}
{[%emt 00:00:43]} 3. g3 {[%clk 01:30:17]} {[%emt 00:00:18]} dxc4 {[%clk
01:30:34]} {[%emt 00:00:34]} 4. Na3 {[%clk 01:28:13]} {[%emt 00:02:33]} a6
{[%clk 01:22:44]} {[%emt 00:08:20]} 5. Nxc4 {[%clk 01:24:02]} {[%emt 00:04:41]}
b5 {[%clk 01:22:42]} {[%emt 00:00:33]} 6. Ne3 {[%clk 01:23:15]} {[%emt
00:01:17]} Bb7 {[%clk 01:22:20]} {[%emt 00:00:52]} 7. Bg2 {[%clk 01:23:34]}
{[%emt 00:00:10]} Nd7 {[%clk 01:22:13]} {[%emt 00:00:37]} 8. O-O {[%clk
01:23:40]} {[%emt 00:00:25]} Ngf6 {[%clk 01:22:13]} {[%emt 00:00:30]} 9. d3
{[%clk 01:18:34]} {[%emt 00:05:36]} Be7 {[%clk 01:21:19]} {[%emt 00:01:23]} 10.
b3 {[%clk 01:15:52]} {[%emt 00:03:12]} O-O {[%clk 01:17:52]} {[%emt 00:03:57]}
11. Bb2 {[%clk 01:16:16]} {[%emt 00:00:07]} c5 {[%clk 01:16:30]} {[%emt
00:01:51]} 12. Qc2 {[%clk 01:13:00]} {[%emt 00:03:45]} Rc8 {[%clk 01:15:28]}
{[%emt 00:01:32]} 13. Rac1 {[%clk 01:12:38]} {[%emt 00:00:54]} Qb6 {[%clk
01:06:29]} {[%emt 00:09:28]} 14. Rfd1 {[%clk 01:12:56]} {[%emt 00:00:12]} Rfd8
{[%clk 01:03:03]} {[%emt 00:03:57]} 15. Qc3 {[%clk 01:08:18]} {[%emt 00:05:07]}
Bf8 {[%clk 01:03:14]} {[%emt 00:00:18]} 16. Ne5 {[%clk 00:59:57]} {[%emt
00:08:51]} Bxg2 {[%clk 01:01:06]} {[%emt 00:02:38]} 17. Kxg2 {[%clk 00:52:13]}
{[%emt 00:08:15]} Qb7+ {[%clk 00:57:58]} {[%emt 00:03:37]} 18. Kg1 {[%clk
00:51:54]} {[%emt 00:00:50]} Nd5 {[%clk 00:57:44]} {[%emt 00:00:45]} 19. Qd2
{[%clk 00:47:52]} {[%emt 00:04:32]} N7b6 {[%clk 00:43:44]} {[%emt 00:14:30]} 20.
Ba1 {[%clk 00:43:31]} {[%emt 00:04:50]} f6 {[%clk 00:36:56]} {[%emt 00:07:18]}
21. Nf3 {[%clk 00:43:07]} {[%emt 00:00:54]} e5 {[%clk 00:31:19]} {[%emt
00:06:07]} 22. Nxd5 {[%clk 00:34:57]} {[%emt 00:08:40]} Nxd5 {[%clk 00:30:32]}
{[%emt 00:01:17]} 23. Qb2 {[%clk 00:30:44]} {[%emt 00:04:43]} Qd7 {[%clk
00:25:30]} {[%emt 00:05:32]} 24. Nh4 {[%clk 00:22:03]} {[%emt 00:09:10]} g5
{[%clk 00:24:27]} {[%emt 00:01:34]} 25. Ng2 {[%clk 00:20:40]} {[%emt 00:01:53]}
h5 {[%clk 00:24:16]} {[%emt 00:00:41]} 26. Qd2 {[%clk 00:15:25]} {[%emt
00:05:46]} Bh6 {[%clk 00:18:10]} {[%emt 00:06:36]} 27. Ne3 {[%clk 00:11:18]}
{[%emt 00:04:37]} Nxe3 {[%clk 00:14:12]} {[%emt 00:04:28]} 28. Qxe3 {[%clk
00:11:42]} {[%emt 00:00:05]} Qd6 {[%clk 00:12:40]} {[%emt 00:02:03]} 29. Qe4
{[%clk 00:10:54]} {[%emt 00:01:17]} Kg7 {[%clk 00:12:09]} {[%emt 00:01:01]} 30.
Rc2 {[%clk 00:08:36]} {[%emt 00:02:48]} g4 {[%clk 00:09:13]} {[%emt 00:03:26]}
31. Bb2 {[%clk 00:07:38]} {[%emt 00:01:29]} Rc7 {[%clk 00:07:21]} {[%emt
00:02:22]} 32. Qf5 {[%clk 00:07:38]} {[%emt 00:00:30]} Bg5 {[%clk 00:06:23]}
{[%emt 00:01:28]} 33. Bc1 {[%clk 00:07:39]} {[%emt 00:00:30]} Bxc1 {[%clk
00:03:46]} {[%emt 00:03:07]} 34. Rdxc1 {[%clk 00:07:58]} {[%emt 00:00:11]} Rh8
{[%clk 00:01:29]} {[%emt 00:02:47]} 35. b4 {[%clk 00:05:23]} {[%emt 00:03:05]}
c4 {[%clk 00:00:57]} {[%emt 00:01:03]} 36. dxc4 {[%clk 00:05:46]} {[%emt
00:00:06]} bxc4 {[%clk 00:00:36]} {[%emt 00:00:51]} 37. Rxc4 {[%clk 00:05:42]}
{[%emt 00:00:34]} Rxc4 {[%clk 00:00:31]} {[%emt 00:00:35]} 38. Rxc4 {[%clk
00:06:05]} {[%emt 00:00:06]} Qd1+ {[%clk 00:00:34]} {[%emt 00:00:27]} 39. Kg2
{[%clk 00:06:31]} {[%emt 00:00:05]} Qd5+ {[%clk 00:00:55]} {[%emt 00:00:08]} 40.
Qe4 {[%clk 00:04:56]} {[%emt 00:02:04]} Qxe4+ {[%clk 00:01:11]} {[%emt
00:00:15]} 41. Rxe4 {[%clk 00:05:25]} Rc8 {[%clk 00:01:06]} {[%emt 00:00:35]}
42. Re3 {[%clk 00:04:58]} {[%emt 00:00:57]} Rc2 {[%clk 00:01:02]} {[%emt
00:00:33]} 43. Ra3 {[%clk 00:04:45]} {[%emt 00:00:44]} Rb2 {[%clk 00:01:25]}
{[%emt 00:00:08]} 44. Ra4 {[%clk 00:04:28]} {[%emt 00:00:46]} a5 {[%clk
00:01:00]} {[%emt 00:00:54]} 45. bxa5 {[%clk 00:03:17]} {[%emt 00:01:41]} Rb7
{[%clk 00:01:26]} {[%emt 00:00:04]} 46. a6 {[%clk 00:02:35]} {[%emt 00:01:12]}
Ra7 {[%clk 00:01:52]} {[%emt 00:00:03]} 47. f3 {[%clk 00:01:45]} {[%emt
00:01:20]} f5 {[%clk 00:02:07]} {[%emt 00:00:15]} 48. Kf2 {[%clk 00:01:26]}
{[%emt 00:00:49]} Kf6 {[%clk 00:02:27]} {[%emt 00:00:10]} 49. Ke3 {[%clk
00:01:49]} {[%emt 00:00:07]} Ke6 {[%clk 00:02:06]} {[%emt 00:00:52]} 50. f4
{[%clk 00:01:44]} {[%emt 00:00:35]} exf4+ {[%clk 00:01:45]} {[%emt 00:00:51]}
51. Kxf4 {[%clk 00:02:08]} {[%emt 00:00:06]} Kf6 {[%clk 00:02:11]} {[%emt
00:00:05]} 52. Ra5 {[%clk 00:02:27]} {[%emt 00:00:11]} Ke6 {[%clk 00:01:41]}
{[%emt 00:00:58]} 53. a3 {[%clk 00:01:32]} {[%emt 00:01:26]} Kf6 {[%clk
00:00:44]} {[%emt 00:01:28]} 54. Rxf5+ {[%clk 00:01:49]} {[%emt 00:00:12]} Kg6
{[%clk 00:01:06]} {[%emt 00:00:08]} 55. Ra5 {[%clk 00:02:10]} {[%emt 00:00:09]}
Rf7+ {[%clk 00:01:14]} {[%emt 00:00:22]} 56. Ke3 {[%clk 00:02:24]} 1-0